fUST/lending_fUST_20240905
["ID","MTS","AMOUNT","RATE_DAILY","PERIOD"]
[337243494,1725535842794,-151.0,0.00021508,2]
[337243495,1725535842804,-151.0,0.00021508,2]
[337243496,1725535842815,-151.0,0.00021508,2]
[337243497,1725535842826,-208.005001,0.00021508,2]
[337243498,1725535842835,-208.005001,0.00021508,2]
[337243499,1725535842844,-151.0,0.00021508,2]
[337243500,1725535842854,-357.64228,0.00021508,2]
[337243501,1725535842864,-357.64228,0.00021508,2]
[337243502,1725535842873,-1316.82088235,0.00021508,2]
[337243505,1725535842910,-198.79038465,0.00021508,2]
[337243507,1725535842920,-1515.611267,0.00021508,2]
[337243509,1725535842929,-206.930096,0.00021508,2]
[337243511,1725535842939,-206.930096,0.00021508,2]
[337243512,1725535842949,-151.0,0.00021508,2]
[337243514,1725535842958,-178.076766,0.00021508,2]
[337243516,1725535842968,-154.504122,0.00021508,2]
[337243517,1725535842977,-38.15726835,0.00021508,2]
[337243522,1725535845824,-150.01,0.00021417,2]
[337243524,1725535845834,-396.10197986,0.00021417,2]
[337243535,1725536590016,189.29383,0.00020177,2]
[337243687,1725537038092,-608.29036,0.00020986,2]
[337243688,1725537038102,-272.75418933,0.00021128,2]
[337243707,1725537042919,-192.28233833,0.00021128,2]
[337243708,1725537042930,-156.0,0.0002117,5]
[337243709,1725537042940,-523.0,0.00021362,2]
[337243710,1725537042951,-150.0,0.00021362,2]
[337243711,1725537042962,-100.99218063,0.00021362,2]
[337243725,1725537339465,852.95,0.000205,2]
[337243726,1725537352337,4430.7101271,0.00020402,2]
[337243841,1725538238342,-500.0,0.00020606,7]
[337243843,1725538238353,-577.875842,0.00020986,2]
[337243845,1725538238363,-1000.0,0.00021,2]
[337243847,1725538238372,-4370.65869657,0.00021349,2]
[337243848,1725538238382,-300.0,0.00021361,2]
[337243849,1725538238391,-300.0,0.00021361,2]
[337243850,1725538238402,-20752.0356813,0.00021362,15]
[337243851,1725538238411,-49.00781937,0.00021362,2]
[337243852,1725538238421,-150.0,0.00021362,2]
[337243854,1725538238431,-150.196,0.00021362,2]
[337243855,1725538238441,-150.0,0.00021362,2]
[337243856,1725538238451,-150.0,0.00021362,2]
[337243858,1725538238460,-150.0,0.00021362,2]
[337243860,1725538238470,-523.0,0.00021362,2]
[337243862,1725538238480,-3108.77788895,0.00021398,2]
[337243864,1725538238490,-1000.0,0.00021418,2]
[337243866,1725538238500,-9287.71247981,0.00021419,3]
[337243867,1725538238512,-7171.14271354,0.00021419,3]
[337243872,1725538240238,-329.7518327,0.00021419,3]
[337243874,1725538240250,-38766.39297395,0.00021419,3]
[337243876,1725538240259,-1684.88409204,0.00021449,2]
[337243877,1725538240270,-500.0,0.00021473,2]
[337243878,1725538240279,-500.0,0.00021473,2]
[337243879,1725538240288,-500.0,0.00021473,2]
[337243880,1725538240298,-160.63339771,0.00021473,2]
[337243881,1725538240307,-500.0,0.00021473,2]
[337243882,1725538240316,-247.32,0.00021488,3]
[337243883,1725538240326,-741.96,0.00021488,3]
[337243884,1725538240335,-189.4345189,0.00021497,2]
[337243885,1725538240344,-500.0,0.00021497,2]
[337243886,1725538240354,-314.70126725,0.00021497,2]
[337243887,1725538240370,-56.62609893,0.00021497,2]
[337243888,1725538240379,-500.0,0.00021497,2]
[337243889,1725538240388,-164.70741026,0.00021497,2]
[337243890,1725538240398,-500.0,0.00021497,2]
[337243891,1725538240407,-500.0,0.00021497,2]
[337243892,1725538240416,-500.0,0.00021497,2]
[337243893,1725538240425,-500.0,0.00021497,2]
[337243894,1725538240437,-500.0,0.00021497,2]
[337243895,1725538240447,-500.0,0.00021497,2]
[337243896,1725538240456,-500.0,0.00021497,2]
[337243897,1725538240465,-500.0,0.00021497,2]
[337243898,1725538240474,-500.0,0.00021497,2]
[337243899,1725538240484,-500.0,0.00021497,2]
[337243900,1725538240493,-500.0,0.00021497,2]
[337243901,1725538240502,-500.0,0.00021497,2]
[337243902,1725538240511,-589.12148528,0.00021497,2]
[337243903,1725538240520,-500.0,0.00021497,2]
[337243904,1725538240529,-475.17359286,0.00021497,2]
[337243905,1725538240538,-90682.85854938,0.00021497,15]
[337243906,1725538240547,-33371.64161589,0.00021498,3]
[337243916,1725538246227,-1373.87461953,0.00021498,3]
[337243939,1725539151633,165.51292036,0.0002,2]
[337243942,1725539313054,17436.82743138,0.00019,2]
[337243944,1725539323312,23308.33281175,0.0002,2]
[337243945,1725539324714,154.93436603,0.0002,2]
[337243973,1725539432154,-500.0,0.00020508,7]
[337243975,1725539432168,-577.875842,0.00020986,2]
[337243977,1725539432178,-465.00182638,0.00021075,2]
[337243979,1725539432188,-3185.19166286,0.00021266,2]
[337243982,1725539432203,-1491.74546568,0.00021266,2]
[337243984,1725539432213,-504.25649679,0.00021293,2]
[337244010,1725539438479,-300.0,0.00021299,2]
[337244013,1725539438489,-300.0,0.00021299,2]
[337244014,1725539438500,-30000.0,0.000213,2]
[337244015,1725539438511,-621.75557779,0.00021366,2]
[337244016,1725539438521,-1000.0,0.00021366,2]
[337244017,1725539438531,-55555.0,0.00021377,3]
[337244018,1725539438540,-621.75557779,0.00021397,2]
[337244019,1725539438549,-153.0,0.000214,2]
[337244020,1725539438561,-153.0,0.000214,2]
[337244021,1725539438572,-153.0,0.000214,2]
[337244022,1725539438582,-153.0,0.000214,2]
[337244023,1725539438591,-153.0,0.000214,2]
[337244024,1725539438601,-153.0,0.000214,2]
[337244025,1725539438611,-153.0,0.000214,2]
[337244026,1725539438620,-153.0,0.000214,2]
[337244027,1725539438630,-153.0,0.000214,2]
[337244028,1725539438640,-153.0,0.000214,2]
[337244029,1725539438650,-153.0,0.000214,2]
[337244030,1725539438660,-172.5948882,0.000214,2]
[337244031,1725539438669,-409.8804906,0.000214,2]
[337244032,1725539438679,-153.0,0.000214,2]
[337244033,1725539438689,-818.7812766,0.000214,2]
[337244034,1725539438698,-153.0,0.000214,2]
[337244035,1725539438708,-621.75557779,0.00021428,2]
[337244036,1725539438718,-494.64,0.00021444,3]
[337244037,1725539438727,-259.92915632,0.00021454,2]
[337244038,1725539438737,-500.0,0.00021454,2]
[337244039,1725539438747,-500.0,0.00021454,2]
[337244040,1725539438756,-500.0,0.00021454,2]
[337244041,1725539438766,-500.0,0.00021454,2]
[337244042,1725539438775,-500.0,0.00021454,2]
[337244043,1725539438785,-514.70741026,0.00021454,2]
[337244044,1725539438794,-500.0,0.00021454,2]
[337244045,1725539438804,-500.0,0.00021454,2]
[337244046,1725539438814,-500.0,0.00021454,2]
[337244047,1725539438827,-500.0,0.00021454,2]
[337244048,1725539438836,-500.0,0.00021454,2]
[337244049,1725539438845,-500.0,0.00021454,2]
[337244050,1725539438855,-500.0,0.00021454,2]
[337244051,1725539438864,-500.0,0.00021454,2]
[337244052,1725539438874,-475.17359286,0.00021454,2]
[337244053,1725539438883,-626.73644558,0.00021454,2]
[337244054,1725539438892,-66112.33368167,0.00021455,15]
[337244078,1725539440338,-17832.33923802,0.00021455,15]
[337244091,1725539440448,-6738.18562969,0.00021455,15]
[337244093,1725539440460,-20752.0356813,0.00021455,15]
[337244095,1725539440469,-104793.28134268,0.00021455,3]
[337244176,1725539919749,200.19,0.000205,2]
[337244180,1725540100011,10000.0,0.000205,2]
[337244181,1725540121593,10000.0,0.000205,2]
[337244182,1725540143303,1500.0,0.000205,2]
[337244215,1725540632349,-548.98205,0.00020986,2]
[337244217,1725540632360,-1000.0,0.00021,2]
[337244219,1725540632370,-4092.31998749,0.00021235,2]
[337244221,1725540632382,-150.0,0.00021269,2]
[337244224,1725540632392,-541.744,0.00021269,2]
[337244225,1725540632402,-199.008,0.00021269,2]
[337244226,1725540632414,-248.70223114,0.00021324,2]
[337244227,1725540632425,-779.80938365,0.00021324,2]
[337244228,1725540632439,-220.19061635,0.00021324,2]
[337244230,1725540632449,-248.70223111,0.00021327,2]
[337244232,1725540632459,-248.70223111,0.0002133,2]
[337244234,1725540632468,-248.70223111,0.00021332,2]
[337244236,1725540632478,-300.0,0.00021334,2]
[337244238,1725540632488,-489.94814345,0.00021335,3]
[337244243,1725540638502,-150.0,0.00021269,2]
[337244244,1725540638734,-20062.26379036,0.00021335,3]
[337244245,1725540638762,-1346.5,0.00021335,3]
[337244246,1725540638773,-2504.97427098,0.00021335,3]
[337244251,1725540640550,-31151.31379521,0.00021335,3]
[337244252,1725540640561,-248.70223111,0.00021335,2]
[337244253,1725540640572,-389.88357099,0.00021413,2]
[337244254,1725540640584,-500.0,0.00021413,2]
[337244255,1725540640594,-500.0,0.00021413,2]
[337244256,1725540640604,-500.0,0.00021413,2]
[337244257,1725540640616,-272.59609181,0.00021413,2]
[337244258,1725540640627,-500.0,0.00021413,2]
[337244259,1725540640637,-500.0,0.00021413,2]
[337244260,1725540640648,-549.73496815,0.00021413,2]
[337244261,1725540640660,-500.0,0.00021413,2]
[337244262,1725540640669,-500.0,0.00021413,2]
[337244263,1725540640680,-500.0,0.00021413,2]
[337244264,1725540640691,-500.0,0.00021413,2]
[337244265,1725540640702,-500.0,0.00021413,2]
[337244266,1725540640712,-500.0,0.00021413,2]
[337244267,1725540640723,-500.0,0.00021413,2]
[337244268,1725540640734,-500.0,0.00021413,2]
[337244269,1725540640743,-407.40680976,0.00021413,2]
[337244270,1725540640753,-500.0,0.00021413,2]
[337244271,1725540640762,-500.0,0.00021413,2]
[337244272,1725540640771,-500.0,0.00021413,2]
[337244273,1725540640780,-500.0,0.00021413,2]
[337244274,1725540640792,-190.81726426,0.00021413,2]
[337244275,1725540640803,-335.18476683,0.00021413,2]
[337244276,1725540640813,-45341.42927469,0.00021414,15]
[337244277,1725540640822,-20752.0356813,0.00021414,15]
[337244278,1725540640833,-1109.282731,0.00021414,2]
[337244279,1725540640843,-1109.282731,0.00021414,2]
[337244280,1725540640852,-15244.2732068,0.00021414,3]
[337244281,1725540640898,-33445.29121885,0.00021414,3]
[337244305,1725540643494,-1094.33990059,0.00021414,3]
[337244306,1725540643507,-306.24798982,0.00021414,3]
[337244310,1725541184992,1184.9,0.00020282,2]
[337244314,1725541488046,316.95292911,0.000205,2]
[337244315,1725541496597,500.0,0.000205,2]
[337244316,1725541513003,500.0,0.000205,2]
[337244320,1725541704652,500.0,0.000205,2]
[337244321,1725541714597,165.317325,0.00019228,2]
[337244365,1725541832771,-612.74358359,0.00020853,3]
[337244367,1725541832781,-521.532948,0.00020986,2]
[337244369,1725541832791,-350.62346841,0.00021,2]
[337244371,1725541832803,-1421.69146479,0.00021,2]
[337244433,1725541840793,-1519.84798768,0.00021,2]
[337244436,1725541840803,-465.00009132,0.00021023,2]
[337244438,1725541840813,-165.317325,0.00021252,2]
[337244440,1725541840823,-248.70223111,0.0002126,2]
[337244442,1725541840833,-300.0,0.00021268,2]
[337244444,1725541840843,-150.196,0.00021269,2]
[337244446,1725541840853,-150.0,0.00021269,2]
[337244448,1725541840863,-150.0,0.00021269,2]
[337244450,1725541840872,-150.0,0.00021269,2]
[337244452,1725541840882,-523.0,0.00021269,2]
[337244454,1725541840892,-1000.0,0.0002127,2]
[337244456,1725541840902,-12230.44609611,0.0002128,3]
[337244458,1725541840912,-153.0,0.000213,2]
[337244460,1725541840922,-153.0,0.000213,2]
[337244462,1725541840931,-153.0,0.000213,2]
[337244464,1725541840941,-153.0,0.000213,2]
[337244466,1725541840953,-153.0,0.000213,2]
[337244468,1725541840963,-500.0,0.00021359,2]
[337244470,1725541840973,-272.59609181,0.00021359,2]
[337244472,1725541840982,-500.0,0.00021359,2]
[337244473,1725541840993,-500.0,0.00021359,2]
[337244474,1725541841003,-500.0,0.00021359,2]
[337244475,1725541841012,-549.73496815,0.00021359,2]
[337244476,1725541841021,-500.0,0.00021359,2]
[337244477,1725541841031,-500.0,0.00021359,2]
[337244478,1725541841040,-500.0,0.00021359,2]
[337244479,1725541841050,-500.0,0.00021359,2]
[337244480,1725541841060,-500.0,0.00021359,2]
[337244481,1725541841070,-500.0,0.00021359,2]
[337244482,1725541841080,-500.0,0.00021359,2]
[337244483,1725541841089,-500.0,0.00021359,2]
[337244484,1725541841099,-500.0,0.00021359,2]
[337244485,1725541841108,-407.40680976,0.00021359,2]
[337244486,1725541841118,-500.0,0.00021359,2]
[337244487,1725541841128,-500.0,0.00021359,2]
[337244488,1725541841138,-500.0,0.00021359,2]
[337244489,1725541841152,-389.88357099,0.00021359,2]
[337244490,1725541841161,-600.0,0.00021359,2]
[337244491,1725541841171,-190.81726426,0.00021359,2]
[337244492,1725541841181,-45341.42927469,0.0002136,15]
[337244493,1725541841191,-20752.0356813,0.0002136,15]
[337244494,1725541841207,-129.21593552,0.0002136,3]
[337244532,1725541843769,-10828.93342939,0.0002136,3]
[337244575,1725541846791,-319.11,0.0002136,3]
[337244576,1725541846804,-201103.40993873,0.0002136,3]
[337244577,1725541899997,30133.1611852,0.0002036,2]
[337244578,1725541909378,3000.0,0.0002036,2]
[337244579,1725541929406,316.776886,0.0002036,2]
[337244582,1725542066444,1416.9982616,0.00020328,2]
[337244585,1725542170366,161.764705,0.00020449,2]
[337244586,1725542171248,250.0,0.00020297,2]
[337244587,1725542228055,251.0,0.00020017,2]
[337244589,1725542264332,165.317325,0.00019016,2]
[337244590,1725542340527,21427.2843423,0.00020029,2]
[337244592,1725542533880,158.388443,0.00020012,2]
[337244595,1725542661476,161.764705,0.00020261,2]
[337244596,1725542661885,161.764705,0.00020331,2]
[337244597,1725542662151,161.764705,0.00020401,2]
[337244598,1725542662387,161.764705,0.00020472,2]
[337244610,1725543031739,-161.764705,0.00020542,2]
[337244611,1725543031749,-144.08420693,0.00020612,2]
[337244612,1725543031761,-17.68049807,0.00020612,2]
[337244613,1725543031771,-161.764705,0.00020683,2]
[337244614,1725543031780,-161.764705,0.00020753,2]
[337244615,1725543031790,-161.764705,0.00020824,2]
[337244616,1725543031799,-161.764705,0.00020894,2]
[337244617,1725543031808,-161.764705,0.00020964,2]
[337244618,1725543031818,-495.4563,0.00020986,2]
[337244619,1725543031827,-300.0,0.00020999,2]
[337244620,1725543031836,-300.0,0.00020999,2]
[337244621,1725543031845,-153.0,0.00021,2]
[337244622,1725543031855,-153.0,0.00021,2]
[337244623,1725543031865,-153.0,0.00021,2]
[337244624,1725543031874,-153.0,0.00021,2]
[337244625,1725543031886,-153.0,0.00021,2]
[337244626,1725543031895,-315.6035665,0.00021,2]
[337244627,1725543031905,-153.0,0.00021,2]
[337244628,1725543031915,-208.1061349,0.00021,2]
[337244629,1725543031925,-208.1061349,0.00021,2]
[337244630,1725543031935,-153.0,0.00021,2]
[337244631,1725543031944,-153.0,0.00021,2]
[337244632,1725543031954,-208.1061349,0.00021,2]
[337244633,1725543031963,-208.1061349,0.00021,2]
[337244634,1725543031972,-210.9571733,0.00021,2]
[337244635,1725543031982,-208.1061349,0.00021,2]
[337244636,1725543031992,-208.1061349,0.00021,2]
[337244637,1725543032001,-208.1061349,0.00021,2]
[337244638,1725543032011,-208.1061349,0.00021,2]
[337244639,1725543032021,-208.1061349,0.00021,2]
[337244640,1725543032030,-208.1061349,0.00021,2]
[337244641,1725543032040,-161.764705,0.00021035,2]
[337244642,1725543032050,-161.764705,0.00021105,2]
[337244643,1725543032071,-161.764705,0.00021176,2]
[337244644,1725543032083,-1000.0,0.0002123,2]
[337244645,1725543032094,-161.764705,0.00021246,2]
[337244646,1725543032104,-161.764705,0.00021316,2]
[337244647,1725543032114,-523.0,0.00021317,2]
[337244648,1725543032124,-150.0,0.00021317,2]
[337244649,1725543032136,-500.0,0.00021319,2]
[337244650,1725543032146,-584.81447771,0.00021319,2]
[337244651,1725543032157,-500.0,0.00021319,2]
[337244652,1725543032167,-500.0,0.00021319,2]
[337244653,1725543032177,-255.18476683,0.00021319,2]
[337244654,1725543032187,-500.0,0.00021319,2]
[337244655,1725543032197,-500.0,0.00021319,2]
[337244656,1725543032208,-500.0,0.00021319,2]
[337244657,1725543032217,-500.0,0.00021319,2]
[337244658,1725543032227,-500.0,0.00021319,2]
[337244659,1725543032237,-483.67423226,0.00021319,2]
[337244660,1725543032252,-16.32576774,0.00021319,2]
[337244661,1725543032262,-550.0,0.00021319,2]
[337244662,1725543032271,-11207.57320571,0.0002132,15]
[337244700,1725543037994,-15712.86643163,0.0002132,15]
[337244701,1725543038004,-10376.01784065,0.0002132,15]
[337244702,1725543038014,-63063.94359752,0.0002132,3]
[337244703,1725543038027,-2000.0,0.0002132,3]
[337244704,1725543038038,-942.36090731,0.0002132,3]
[337244705,1725543038726,158.388444,0.00020325,2]
[337244738,1725543039965,-582.04603108,0.0002132,3]
[337244763,1725543043005,-5223.23091514,0.0002132,3]
[337244764,1725543043019,-2443.84952322,0.0002132,3]
[337244785,1725543077160,536.3472655,0.00020323,2]
[337244787,1725543144532,170.209478,0.00020464,2]
[337244793,1725543237444,250.0,0.00020042,2]
[337244796,1725543274115,251.0,0.00020061,2]
[337244799,1725543455540,1329.257798,0.00020064,2]
[337244802,1725543574618,500.0,0.000205,2]
[337244803,1725543621220,402.53723,0.00020046,2]
[337244805,1725543712735,161.699004,0.00020274,2]
[337244806,1725543712962,161.699004,0.0002033,2]
[337244807,1725543713185,161.699004,0.00020385,2]
[337244808,1725543713391,161.699004,0.00020441,2]
[337244809,1725543713626,161.699004,0.00020496,2]
[337244816,1725543854556,251.0,0.00019991,2]
[337244819,1725544156247,1162.2397545,0.00019978,2]
[337244822,1725544221358,161.699004,0.0002023,2]
[337244823,1725544221607,161.699004,0.00020305,2]
[337244824,1725544221847,161.699004,0.00020381,2]
[337244825,1725544222068,161.699004,0.00020456,2]
[337244868,1725544231995,-161.699004,0.00020531,2]
[337244870,1725544232006,-161.699004,0.00020606,2]
[337244872,1725544232019,-161.699004,0.00020682,2]
[337244874,1725544232029,-106.152988,0.00020757,2]
[337244876,1725544232042,-55.546016,0.00020757,2]
[337244878,1725544232053,-161.699004,0.00020832,2]
[337244880,1725544232063,-161.699004,0.00020908,2]
[337244882,1725544232073,-465.00000457,0.0002097,2]
[337244884,1725544232084,-161.699004,0.00020983,2]
[337244886,1725544232094,-470.683485,0.00020986,2]
[337244888,1725544232104,-1545.70286086,0.00020997,2]
[337244890,1725544232121,-300.0,0.00020999,2]
[337244892,1725544232131,-300.0,0.00020999,2]
[337244894,1725544232140,-409.8804906,0.00021,2]
[337244897,1725544232150,-153.0,0.00021,2]
[337244899,1725544232160,-153.0,0.00021,2]
[337244901,1725544232171,-153.0,0.00021,2]
[337244903,1725544232181,-208.1061349,0.00021,2]
[337244904,1725544232191,-208.1061349,0.00021,2]
[337244905,1725544232201,-208.1061349,0.00021,2]
[337244906,1725544232211,-161.699004,0.00021058,2]
[337244907,1725544232221,-161.699004,0.00021133,2]
[337244908,1725544232231,-1000.0,0.0002119,2]
[337244909,1725544232241,-161.699004,0.00021209,2]
[337244910,1725544232251,-4398.37847818,0.0002121,3]
[337245021,1725544240145,-32454.38483087,0.00021241,2]
[337245055,1725544243573,-3854.90991217,0.00021119,2]
[337245056,1725544243583,-1944.59008783,0.00021241,2]
[337245057,1725544243650,-25644.73786438,0.00021241,2]
[337245058,1725544243659,-500.0,0.00021273,2]
[337245059,1725544243669,-500.0,0.00021273,2]
[337245060,1725544243678,-500.0,0.00021273,2]
[337245061,1725544243687,-500.0,0.00021273,2]
[337245062,1725544243696,-500.0,0.00021279,2]
[337245063,1725544243706,-500.0,0.00021279,2]
[337245064,1725544243715,-500.0,0.00021279,2]
[337245065,1725544243725,-259.3701344,0.00021279,2]
[337245067,1725544243734,-500.0,0.00021279,2]
[337245070,1725544243743,-500.0,0.00021279,2]
[337245072,1725544243752,-500.0,0.00021279,2]
[337245073,1725544243763,-363.62933678,0.00021279,2]
[337245074,1725544243772,-500.0,0.00021279,2]
[337245075,1725544243781,-500.0,0.00021279,2]
[337245076,1725544243790,-256.324146,0.00021279,2]
[337245077,1725544243801,-5188.00892032,0.0002128,15]
[337245078,1725544243810,-523.0,0.0002128,2]
[337245079,1725544243819,-150.0,0.0002128,2]
[337245080,1725544243829,-150.0,0.0002128,2]
[337245081,1725544243838,-13460.21981868,0.0002128,15]
[337245082,1725544243848,-403296.26170904,0.0002128,3]
[337245090,1725544246167,-756.324146,0.0002128,3]
[337245091,1725544325545,189.9557127,0.00020278,2]
[337245094,1725544351983,276.31710913,0.00020237,2]
[337245095,1725544358278,1959.007166,0.00020278,2]
[337245096,1725544386681,90000.0,0.0002,30]
[337245097,1725544404137,443.7258129,0.00020274,4]
[337245099,1725544408042,251.0,0.00020269,2]
[337245100,1725544413017,201.268615,0.00020266,2]
[337245101,1725544447082,536.8375656,0.00020205,2]
[337245102,1725544469452,3000.0,0.00020205,2]
[337245103,1725544469759,187.293076,0.00019195,2]
[337245104,1725544635791,200.0,0.000192,2]
[337245105,1725544654991,19633.7107828,0.00020185,2]
[337245106,1725544708046,182.495798,0.00019911,2]
[337245107,1725544764833,183.08495,0.00020346,2]
[337245108,1725544765215,183.08495,0.00020401,2]
[337245109,1725544765443,183.08495,0.00020457,2]
[337245110,1725544788495,21234.5838047,0.00019931,2]
[337245113,1725544898005,250.0,0.00019957,2]
[337245114,1725544899305,423.0531946,0.00020116,2]
[337245115,1725544925707,251.0,0.00019957,2]
[337245116,1725544943111,552.33970681,0.00020082,2]
[337245117,1725544943224,552.33970681,0.00020164,2]
[337245118,1725544943350,552.33970681,0.00020247,2]
[337245119,1725544943472,552.33970681,0.00020329,2]
[337245120,1725544943593,552.33970681,0.00020411,2]
[337245121,1725544943846,552.33970681,0.00020493,2]
[337245122,1725544964817,494.7985125,0.00019922,2]
[337245123,1725544982395,3000.0,0.00019922,2]
[337245124,1725545046555,261.1159566,0.00019958,2]
[337245125,1725545091075,185.98231,0.0001896,2]
[337245127,1725545154134,255.865993,0.00019942,2]
[337245128,1725545159395,24900.0,0.00019942,2]
[337245129,1725545210311,176.18913,0.00019672,2]
[337245130,1725545255356,250.0,0.00020083,2]
[337245131,1725545255653,250.0,0.00020138,2]
[337245132,1725545255877,250.0,0.00020193,2]
[337245133,1725545256125,250.0,0.00020248,2]
[337245134,1725545256418,250.0,0.00020304,2]
[337245135,1725545256720,250.0,0.00020359,2]
[337245136,1725545257012,250.0,0.00020414,2]
[337245137,1725545257227,250.0,0.00020469,2]
[337245139,1725545312556,1679.258668,0.00019903,2]
[337245140,1725545325746,8025.6406946,0.00019903,2]
[337245146,1725545432085,-250.0,0.00020524,2]
[337245147,1725545432095,-340.75,0.00020575,2]
[337245148,1725545432343,-211.58970681,0.00020575,2]
[337245149,1725545432353,-250.0,0.00020579,2]
[337245150,1725545432362,-250.0,0.00020634,2]
[337245151,1725545432372,-269.75529319,0.00020658,2]
[337245152,1725545432391,-282.58441362,0.00020658,2]
[337245153,1725545432401,-250.0,0.00020689,2]
[337245154,1725545432412,-462.45658638,0.0002074,2]
[337245174,1725545438306,-89.88312043,0.0002074,2]
[337245175,1725545438316,-250.0,0.00020744,2]
[337245176,1725545438326,-250.0,0.00020799,2]
[337245177,1725545438336,-552.33970681,0.00020822,2]
[337245178,1725545438345,-250.0,0.00020854,2]
[337245179,1725545438355,-250.0,0.00020909,2]
[337245180,1725545438368,-552.33970681,0.00020932,2]
[337245181,1725545438378,-178.92579983,0.00020956,2]
[337245182,1725545438391,-7.05651017,0.00020956,2]
[337245183,1725545438400,-250.0,0.00020964,2]
[337245184,1725545438410,-447.149311,0.00020986,2]
[337245185,1725545438420,-300.0,0.00020999,2]
[337245186,1725545438430,-300.0,0.00020999,2]
[337245187,1725545438440,-208.1061349,0.00021,2]
[337245188,1725545438450,-208.1061349,0.00021,2]
[337245189,1725545438459,-208.1061349,0.00021,2]
[337245190,1725545438469,-208.1061349,0.00021,2]
[337245191,1725545438479,-208.1061349,0.00021,2]
[337245192,1725545438488,-208.1061349,0.00021,2]
[337245193,1725545438498,-208.1061349,0.00021,2]
[337245194,1725545438507,-552.33970681,0.00021014,2]
[337245195,1725545438517,-250.0,0.00021019,2]
[337245196,1725545438527,-250.0,0.00021075,2]
[337245197,1725545438537,-4769.2589615,0.00021078,2]
[337245198,1725545438549,-552.33970681,0.00021096,2]
[337245199,1725545438560,-250.0,0.0002113,2]
[337245200,1725545438569,-16510.82676136,0.0002113,3]
[337245201,1725545438582,-993.2218712,0.0002113,3]
[337245202,1725545438606,-33652.57288926,0.0002113,3]
[337245203,1725545438615,-552.33970681,0.00021178,2]
[337245204,1725545438624,-1500.0,0.0002119,2]
[337245205,1725545438634,-500.0,0.00021219,2]
[337245206,1725545438644,-531.55909408,0.00021219,2]
[337245207,1725545438654,-500.0,0.00021219,2]
[337245208,1725545438663,-500.0,0.00021219,2]
[337245209,1725545438673,-500.0,0.00021219,2]
[337245210,1725545438683,-354.54053575,0.00021219,2]
[337245211,1725545438693,-6730.10990933,0.0002122,15]
[337245212,1725545438702,-2594.00446016,0.0002122,15]
[337245213,1725545438712,-55492.0906456,0.0002122,2]
[337245214,1725545438729,-8155.56120508,0.0002122,2]
[337245400,1725545443916,2504.2462963,0.00019986,2]
[337245403,1725545443933,-208.1061349,0.00021,2]
[337245405,1725545443943,-543.68406005,0.0002122,2]
[337245417,1725545481996,3000.0,0.00020243,2]
[337245418,1725545512970,1753.307592,0.0002023,2]
[337245419,1725545529474,777.9850358,0.0002023,2]
[337245420,1725545530219,428.7600084,0.0002023,2]
[337245421,1725545610349,26100.2133299,0.00020192,2]
[337245423,1725545648891,171.626651,0.00019178,2]
[337245426,1725545693673,24900.0,0.00020162,2]
[337245429,1725545852307,839.629334,0.00020153,2]
[337245436,1725545942974,250.0,0.00020162,2]
[337245438,1725545962924,157.496277,0.00020344,2]
[337245439,1725545963836,157.496277,0.0002042,2]